fUST/lending_fUST_20251024
["ID","MTS","AMOUNT","RATE_DAILY","PERIOD"]
[392206290,1761253832493,-8281.26618399,0.00022,7]
[392206291,1761253832503,-734.8310695,0.00022,7]
[392206292,1761253832514,-1689.00177835,0.00022,7]
[392206293,1761253832524,-2428.12706074,0.00022,7]
[392206391,1761253837802,-8525.78800508,0.00022,7]
[392206392,1761253837813,-164.0,0.00022,2]
[392206394,1761253837822,-165.8,0.00022039,2]
[392206396,1761253837831,-241.17414984,0.00022092,2]
[392206397,1761253837840,-341.03767664,0.00022093,2]
[392206400,1761253837851,-158.96232336,0.00022093,2]
[392206401,1761253837860,-180.33,0.00022093,2]
[392206403,1761253837869,-180.3,0.00022093,2]
[392206406,1761253837879,-245.0,0.00022138,2]
[392206408,1761253837888,-500.0,0.00022138,2]
[392206409,1761253837897,-151.0,0.00022138,2]
[392206411,1761253837906,-292.0,0.00022138,2]
[392206413,1761253837917,-292.35119698,0.00022138,2]
[392206414,1761253837926,-500.0,0.00022193,2]
[392206415,1761253837935,-1183.30743523,0.00022232,2]
[392206475,1761253840206,-3e-08,0.00022232,2]
[392206513,1761253846116,-376.45777452,0.00022052,2]
[392206514,1761253846126,-3242.08222548,0.00022232,2]
[392206515,1761253846138,-15047.29495511,0.00022232,2]
[392206532,1761253864430,150.0,0.0001928,2]
[392206533,1761253864829,150.0,0.00020198,2]
[392206534,1761253865236,150.0,0.00021116,2]
[392206535,1761253868922,150.0,0.00013417,30]
[392206536,1761253869324,150.0,0.00014056,30]
[392206537,1761253869734,150.0,0.00014695,30]
[392206538,1761253882977,6063.23931335,0.00021073,2]
[392206539,1761253883003,10000.01,0.00021073,2]
[392206540,1761253892737,-250.0,0.00020336,2]
[392206541,1761253892769,-904.66,0.00021063,10]
[392206542,1761253892800,-838.68,0.00021063,3]
[392206548,1761253931103,-2287.05680127,0.00020999,2]
[392206549,1761253931141,-1293.61,0.00021063,10]
[392206550,1761253931180,-300.0,0.00021072,2]
[392206551,1761253936902,150.0,0.00019349,2]
[392206552,1761253936975,-1078.0,0.00021063,10]
[392206553,1761253940017,-150.0,0.0002027,2]
[392206554,1761253941182,150.0,0.00012254,30]
[392206555,1761253941585,150.0,0.00012838,30]
[392206556,1761253942005,150.0,0.00013421,30]
[392206557,1761253942426,150.0,0.00014005,30]
[392206558,1761253942874,150.0,0.00014588,30]
[392206559,1761253943078,-8287.20286526,0.00021073,2]
[392206560,1761253943160,-10000.01,0.00021073,2]
[392206561,1761253943292,178.06,0.00015172,30]
[392206562,1761253943695,207.74,0.00015755,30]
[392206563,1761253944170,237.41,0.00016339,30]
[392206564,1761253944575,166.75,0.00016922,30]
[392206565,1761253955074,-163.15440764,0.00020973,2]
[392206566,1761253955106,-927.04,0.00021063,10]
[392206567,1761253955166,-7819.62118472,0.00021073,2]
[392206570,1761254016252,150.0,0.00012928,30]
[392206571,1761254016662,150.0,0.00013543,30]
[392206572,1761254017065,150.0,0.00014159,30]
[392206573,1761254017472,150.0,0.00014775,30]
[392206574,1761254017891,150.0,0.0001539,30]
[392206575,1761254018308,151.81,0.00016006,30]
[392206576,1761254018719,177.11,0.00016622,30]
[392206577,1761254019142,189.82,0.00017237,30]
[392206580,1761254090123,150.0,0.00012932,30]
[392206581,1761254090545,150.0,0.00013547,30]
[392206582,1761254091486,150.0,0.00014163,30]
[392206583,1761254091997,150.0,0.00014779,30]
[392206584,1761254092405,150.0,0.00015395,30]
[392206585,1761254097225,-150.0,0.00019335,2]
[392206586,1761254127250,-407.15640658,0.00019796,2]
[392206587,1761254127288,-150.0,0.00020256,2]
[392206588,1761254127319,-916.06,0.00021063,10]
[392206589,1761254127351,-763.38,0.00021063,10]
[392206590,1761254127381,-636.15,0.00021063,10]
[392206591,1761254127411,-300.0,0.00021071,2]
[392206592,1761254127439,-166.27784997,0.00021072,2]
[392206593,1761254127468,-318.68948961,0.00021072,2]
[392206594,1761254127495,-253.86052632,0.00021072,2]
[392206595,1761254127524,-500.0,0.00021072,2]
[392206596,1761254127554,-193.13140736,0.00021072,2]
[392206597,1761254127583,-290.59864032,0.00021072,2]
[392206598,1761254127785,-209.40135968,0.00021072,2]
[392206599,1761254127821,-308.41181136,0.00021072,2]
[392206600,1761254128300,200.0,0.00020915,6]
[392206601,1761254128562,9183.18637728,0.00020973,2]
[392206602,1761254128585,10000.01,0.00020973,2]
[392206603,1761254128607,3802.16806955,0.00020973,2]
[392206604,1761254136697,530.13,0.00021063,10]
[392206605,1761254138339,298.55,0.00021063,3]
[392206606,1761254139384,334.94468692,0.00020973,2]
[392206607,1761254144448,165.2106279,0.00020945,2]
[392206608,1761254147295,441.77,0.00021063,10]
[392206609,1761254149770,895.69,0.00021063,3]
[392206610,1761254159665,368.14,0.00021063,10]
[392206611,1761254160118,150.0,0.0001927,2]
[392206612,1761254160517,150.0,0.00020188,2]
[392206614,1761254162524,300.0,0.00021072,2]
[392206615,1761254163939,150.0,0.00012942,30]
[392206616,1761254164344,150.0,0.00013558,30]
[392206617,1761254164780,150.0,0.00014175,30]
[392206618,1761254171418,306.79,0.00021063,10]
[392206619,1761254181800,255.66,0.00021063,10]
[392206620,1761254193124,213.05,0.00021063,10]
[392206621,1761254204619,177.54,0.00021063,10]
[392206622,1761254214623,6576.1593721,0.00020214,2]
[392206623,1761254214647,2024.6675889,0.00020214,2]
[392206624,1761254217049,887.71,0.00021063,10]
[392206625,1761254222544,300.0,0.00021072,2]
[392206626,1761254233229,150.0,0.00019278,2]
[392206627,1761254233625,150.0,0.00020196,2]
[392206628,1761254236456,150.0,0.0001292,30]
[392206629,1761254242244,203.7926754,0.00020214,2]
[392206630,1761254263518,2275.50963682,0.00020973,2]
[392206631,1761254282205,300.0,0.00021072,2]
[392206633,1761254302717,150.0,0.00019281,2]
[392206634,1761254303133,150.0,0.00020199,2]
[392206635,1761254342615,300.0,0.00021072,2]
[392206636,1761254370873,150.0,0.00019264,2]
[392206637,1761254371279,150.0,0.00020181,2]
[392206638,1761254388865,8800.01,0.00020973,2]
[392206639,1761254388891,6523.56629788,0.00020973,2]
[392206640,1761254393502,571.22189341,0.00021073,2]
[392206641,1761254402286,300.0,0.00021072,2]
[392206643,1761254421360,2605.22180871,0.00020214,2]
[392206644,1761254421382,10000.01,0.00020214,2]
[392206645,1761254421405,8967.29939089,0.00020214,2]
[392206646,1761254438466,150.0,0.00019259,2]
[392206647,1761254438860,150.0,0.00020176,2]
[392206649,1761254462194,300.0,0.00021072,2]
[392206651,1761254504077,150.0,0.0001926,2]
[392206652,1761254504504,150.0,0.00020177,2]
[392206656,1761254522164,300.0,0.00021072,2]
[392206657,1761254536112,993.2280263,0.00020658,2]
[392206658,1761254560276,323.43,0.00021063,3]
[392206659,1761254570322,150.0,0.0001927,2]
[392206660,1761254570735,150.0,0.00020187,2]
[392206661,1761254571628,161.71,0.00021063,3]
[392206663,1761254582238,300.0,0.00021072,2]
[392206664,1761254583934,485.16,0.00021063,3]
[392206665,1761254603755,1820.40770944,0.00020973,2]
[392206671,1761254642745,300.0,0.00021072,2]
[392206672,1761254649350,4416.07426426,0.00020973,2]
[392206673,1761254649372,5799.64326766,0.00020973,2]
[392206674,1761254659377,213.55964899,0.00021072,2]
[392206675,1761254659415,500.0,0.00021072,2]
[392206676,1761254659469,500.0,0.00021072,2]
[392206677,1761254659519,500.0,0.00021072,2]
[392206678,1761254659546,458.95633339,0.00021072,2]
[392206679,1761254659576,500.0,0.00021072,2]
[392206680,1761254659628,399.5726063,0.00021072,2]
[392206681,1761254659653,623.78064329,0.00021072,2]
[392206682,1761254659721,500.0,0.00021072,2]
[392206683,1761254659785,4.49750037,0.00021072,2]
[392206684,1761254659807,495.50249963,0.00021072,2]
[392206688,1761254714596,-196.0,0.00016,2]
[392206689,1761254714630,-196.0,0.00016191,2]
[392206690,1761254714662,-196.0,0.00016382,2]
[392206691,1761254714695,-196.0,0.00016573,2]
[392206692,1761254714736,-196.0,0.00016764,2]
[392206693,1761254714767,-196.0,0.00016955,2]
[392206694,1761254714800,-196.0,0.00017145,2]
[392206695,1761254714832,-196.0,0.00017336,2]
[392206696,1761254714869,-196.0,0.00017527,2]
[392206697,1761254714904,-196.0,0.00017718,2]
[392206698,1761254714937,-196.0,0.00017909,2]
[392206699,1761254714970,-250.47732198,0.000181,2]
[392206700,1761254715002,-666.0,0.00020799,2]
[392206713,1761254826002,196.0,0.00016,2]
[392206714,1761254826303,196.0,0.0001705,2]
[392206715,1761254826555,288.77733849,0.000181,2]
[392206725,1761254867869,173.736494,0.00020106,2]
[392206726,1761254870527,-1692.52399617,0.00020973,2]
[392206727,1761254870559,-500.0,0.00021072,2]
[392206728,1761254870591,-191.82349139,0.00021072,2]
[392206729,1761254870622,-300.0,0.00021072,2]
[392206730,1761254870655,-500.0,0.00021072,2]
[392206731,1761254870686,-500.0,0.00021072,2]
[392206732,1761254870717,-500.0,0.00021072,2]
[392206733,1761254870848,-397.77,0.00021072,2]
[392206734,1761254882220,300.0,0.00021072,2]
[392206736,1761254910140,535.77502488,0.00020973,2]
[392206737,1761254910169,6274.70332974,0.00020973,2]
[392206738,1761254915175,3227.03960498,0.00019,2]
[392206741,1761254920384,498.26706528,0.0002,2]
[392206742,1761254920414,2705.57417352,0.0002,2]
[392206750,1761254942493,300.0,0.00021072,2]
[392206752,1761254944634,1797.82070128,0.00020973,2]
[392206788,1761255001984,300.0,0.00021072,2]
[392206842,1761255032083,-2159.56734642,0.00021073,2]
[392206849,1761255032142,-156424.01717833,0.00021073,2]
[392207099,1761255038032,-2339.67092159,0.00021073,2]
[392207100,1761255038045,-10961.0,0.00021073,2]
[392207101,1761255038056,-2502.98575476,0.00021073,2]
[392207137,1761255039444,-3183.26332615,0.00035975,120]
[392207138,1761255039491,-16853.71879731,0.00035975,120]
[392207139,1761255039543,-500.0,0.00035975,60]
[392207140,1761255039587,-300.0,0.00035975,60]
[392207141,1761255039631,-500.0,0.00035975,60]
[392207142,1761255039673,-500.0,0.00035975,60]
[392207144,1761255039714,-500.0,0.00035975,60]
[392207146,1761255039759,-500.0,0.00035975,60]
[392207149,1761255039803,-500.0,0.00035975,60]
[392207152,1761255039845,-500.0,0.00035975,60]
[392207158,1761255039891,-500.0,0.00035975,60]
[392207163,1761255039940,-500.0,0.00035975,60]
[392207164,1761255039993,-500.0,0.00035975,60]
[392207165,1761255040041,-500.0,0.00035975,60]
[392207166,1761255040217,-500.0,0.00035975,60]
[392207167,1761255040265,-500.0,0.00035975,60]
[392207169,1761255040313,-500.0,0.00035975,60]
[392207171,1761255040361,-500.0,0.00035975,60]
[392207176,1761255040409,-500.0,0.00035975,60]
[392207179,1761255040456,-500.0,0.00035975,60]
[392207183,1761255040503,-500.0,0.00035975,60]
[392207184,1761255040551,-500.0,0.00035975,60]
[392207185,1761255040596,-500.0,0.00035975,60]
[392207186,1761255040642,-496.00544928,0.00035975,60]
[392207187,1761255040683,-300.0,0.00035975,60]
[392207188,1761255040725,-500.0,0.00035975,60]
[392207189,1761255040773,-500.0,0.00035975,60]
[392207190,1761255040817,-500.0,0.00035975,60]
[392207191,1761255040860,-500.0,0.00035975,60]
[392207192,1761255040904,-500.0,0.00035975,60]
[392207193,1761255040948,-500.0,0.00035975,60]
[392207194,1761255040993,-500.0,0.00035975,60]
[392207195,1761255041039,-280.0,0.00035975,60]
[392207196,1761255041084,-500.0,0.00035975,60]
[392207197,1761255041129,-500.0,0.00035975,60]
[392207198,1761255041177,-500.0,0.00035975,60]
[392207199,1761255041223,-500.0,0.00035975,60]
[392207200,1761255041268,-500.0,0.00035975,60]
[392207201,1761255041313,-500.0,0.00035975,60]
[392207202,1761255041358,-500.0,0.00035975,60]
[392207203,1761255041402,-500.0,0.00035975,60]
[392207204,1761255041446,-500.0,0.00035975,60]
[392207205,1761255041493,-500.0,0.00035975,60]
[392207206,1761255041541,-500.0,0.00035975,60]
[392207207,1761255041589,-500.0,0.00035975,60]
[392207208,1761255041638,-500.0,0.00035975,60]
[392207209,1761255041683,-500.0,0.00035975,60]
[392207210,1761255041727,-500.0,0.00035975,60]
[392207211,1761255041775,-500.0,0.00035975,60]
[392207212,1761255041820,-500.0,0.00035975,60]
[392207213,1761255041863,-500.0,0.00035975,60]
[392207214,1761255041905,-500.0,0.00035975,60]
[392207215,1761255041947,-500.0,0.00035975,60]
[392207216,1761255041990,-500.0,0.00035975,60]
[392207217,1761255042034,-569.5843067,0.00035975,60]
[392207218,1761255042081,-1640.93,0.00035975,60]
[392207219,1761255042128,-1640.93,0.00035975,60]
[392207220,1761255042175,-1640.93,0.00035975,60]
[392207221,1761255042218,-1640.93,0.00035975,60]
[392207222,1761255042261,-1640.93,0.00035975,60]
[392207223,1761255042304,-1640.93,0.00035975,60]
[392207224,1761255042346,-1640.93,0.00035975,60]
[392207225,1761255042389,-1640.93,0.00035975,60]
[392207226,1761255042432,-1640.93,0.00035975,60]
[392207227,1761255042480,-1640.93,0.00035975,60]
[392207228,1761255042522,-1640.93,0.00035975,60]
[392207230,1761255042564,-1640.93,0.00035975,60]
[392207233,1761255042608,-1640.93,0.00035975,60]
[392207234,1761255042650,-1640.93,0.00035975,60]
[392207237,1761255042694,-1640.93,0.00035975,60]
[392207238,1761255042736,-1640.93,0.00035975,60]
[392207240,1761255042779,-1640.93,0.00035975,60]
[392207243,1761255042821,-1640.93,0.00035975,60]
[392207244,1761255042865,-1640.93,0.00035975,60]
[392207245,1761255042910,-1640.93,0.00035975,60]
[392207246,1761255042953,-1640.93,0.00035975,60]
[392207247,1761255042994,-1640.93,0.00035975,60]
[392207249,1761255043036,-1640.93,0.00035975,60]
[392207251,1761255043079,-1640.949664,0.00035975,60]
[392207252,1761255043122,-500.0,0.00035975,60]
[392207254,1761255043167,-500.0,0.00035975,60]
[392207255,1761255043213,-500.0,0.00035975,60]
[392207256,1761255043261,-229.32515842,0.00035975,60]
[392207257,1761255043429,-500.0,0.00035975,30]
[392207258,1761255043483,-500.0,0.00035975,30]
[392207259,1761255043528,-500.0,0.00035975,30]
[392207260,1761255043572,-500.0,0.00035975,30]
[392207261,1761255043616,-2674.1741315,0.00035975,120]
[392207262,1761255043658,-500.0,0.00035975,30]
[392207263,1761255043698,-500.0,0.00035975,30]
[392207264,1761255043737,-500.0,0.00035975,30]
[392207265,1761255043972,-353.83491488,0.00021073,2]
[392207272,1761255062914,300.0,0.00021072,2]
[392207273,1761255065217,837.15,0.00021063,10]
[392207274,1761255070359,2438.27610088,0.00021073,2]
[392207275,1761255072362,500.0,0.00021072,2]
[392207276,1761255075830,500.0,0.00021072,2]
[392207277,1761255075872,321.18902432,0.00021072,2]
[392207278,1761255075897,178.81097568,0.00021072,2]
[392207279,1761255075932,500.0,0.00021072,2]
[392207280,1761255075980,514.47,0.00021072,2]
[392207281,1761255077063,1128.46,0.00021063,10]
[392207282,1761255077972,500.0,0.00021072,2]
[392207283,1761255078030,500.0,0.00021072,2]
[392207284,1761255078093,500.0,0.00021072,2]
[392207285,1761255078142,500.0,0.00021072,2]
[392207286,1761255078202,204.3907,0.00021072,2]
[392207287,1761255080205,500.0,0.00021072,2]
[392207288,1761255080236,500.0,0.00021072,2]
[392207289,1761255080269,500.0,0.00021072,2]
[392207290,1761255080296,173.81085014,0.00021072,2]
[392207291,1761255080323,500.0,0.00021072,2]
[392207292,1761255080479,500.0,0.00021072,2]
[392207293,1761255081568,500.0,0.00021072,2]
[392207294,1761255081606,500.0,0.00021072,2]
[392207295,1761255081638,500.0,0.00021072,2]
[392207296,1761255081670,500.0,0.00021072,2]
[392207297,1761255081702,600.0,0.00021072,2]
[392207298,1761255081737,200.06747418,0.00021072,2]
[392207299,1761255081763,299.93252582,0.00021072,2]
[392207300,1761255081796,500.0,0.00021072,2]
[392207301,1761255081829,500.0,0.00021072,2]
[392207302,1761255081864,500.0,0.00021072,2]
[392207303,1761255081895,500.0,0.00021072,2]
[392207304,1761255081926,500.0,0.00021072,2]
[392207305,1761255081961,209.00671141,0.00021072,2]
[392207306,1761255081993,500.0,0.00021072,2]
[392207307,1761255082023,500.0,0.00021072,2]
[392207308,1761255082055,500.0,0.00021072,2]
[392207309,1761255082089,500.0,0.00021072,2]
[392207310,1761255082120,500.0,0.00021072,2]
[392207311,1761255082151,500.0,0.00021072,2]
[392207312,1761255082182,500.0,0.00021072,2]
[392207313,1761255130066,-177.5,0.00021063,3]
[392207314,1761255130098,-606.85,0.00021063,3]
[392207315,1761255130131,-940.38,0.00021063,10]
[392207316,1761255130165,-303.43,0.00021063,3]
[392207317,1761255130199,-783.65,0.00021063,10]
[392207318,1761255130232,-151.71,0.00021063,3]
[392207319,1761255130265,-653.05,0.00021063,10]
[392207320,1761255130296,-455.17,0.00021063,3]
[392207321,1761255130441,-300.0,0.00021071,2]
[392207322,1761255130477,-500.0,0.00021072,2]
[392207323,1761255130676,-383.06460773,0.00021072,2]
[392207324,1761255130707,-499.99999999,0.00021072,2]
[392207325,1761255130739,-500.0,0.00021072,2]
[392207326,1761255130771,-165.0,0.00021072,2]
[392207327,1761255130803,-500.0,0.00021072,2]
[392207328,1761255130834,-500.0,0.00021072,2]
[392207329,1761255132887,4903.88078456,0.0002027,2]
[392207330,1761255132912,96.11921544,0.0002027,2]
[392207331,1761255133366,544.2,0.00021063,10]
[392207332,1761255144511,453.5,0.00021063,10]
[392207333,1761255153793,2903.838114,0.00020371,2]
[392207334,1761255154813,478.88384063,0.00021072,2]
[392207335,1761255156142,377.92,0.00021063,10]
[392207338,1761255160644,574.87,0.00021063,3]
[392207339,1761255168118,314.93,0.00021063,10]
[392207340,1761255171846,287.44,0.00021063,3]
[392207341,1761255179289,262.45,0.00021063,10]
[392207342,1761255182227,300.0,0.00021072,2]
[392207343,1761255182874,862.33,0.00021063,3]
[392207344,1761255188196,1000.0,0.00021072,2]
[392207345,1761255188430,1000.0,0.00021072,2]
[392207346,1761255188664,543.52882993,0.00021072,2]
[392207347,1761255188688,456.47117007,0.00021072,2]
[392207348,1761255188900,1000.0,0.00021072,2]
[392207349,1761255189153,1000.0,0.00021072,2]
[392207350,1761255189400,1000.0,0.00021072,2]
[392207351,1761255189639,1000.0,0.00021072,2]
[392207352,1761255189860,1000.0,0.00021072,2]
[392207353,1761255190087,1000.0,0.00021072,2]
[392207354,1761255190312,1000.0,0.00021072,2]
[392207355,1761255190554,1000.0,0.00021072,2]
[392207356,1761255190757,218.7,0.00021063,10]
[392207357,1761255190785,1000.0,0.00021072,2]
[392207358,1761255191020,324.83882993,0.00021072,2]
[392207359,1761255191045,254.79172794,0.00021072,2]
[392207360,1761255202523,182.25,0.00021063,10]
[392207361,1761255206021,251.03975042,0.00020685,2]
[392207362,1761255213759,151.88,0.00021063,10]
[392207363,1761255225728,759.42,0.00021063,10]
[392207364,1761255230091,8400.62852164,0.00020973,2]
[392207365,1761255230116,10000.01,0.00020973,2]
[392207366,1761255230139,10000.01,0.00020973,2]
[392207367,1761255230163,10000.01,0.00020973,2]
[392207368,1761255230186,10000.01,0.00020973,2]
[392207369,1761255230209,10000.01,0.00020973,2]
[392207370,1761255230232,10000.01,0.00020973,2]
[392207371,1761255230253,10000.01,0.00020973,2]
[392207372,1761255230276,10000.01,0.00020973,2]
[392207373,1761255230298,10000.01,0.00020973,2]
[392207374,1761255245545,-0.01,0.00020763,2]
[392207375,1761255245715,-0.02,0.00020763,2]
[392207376,1761255245832,-0.04,0.00020763,2]
[392207377,1761255245963,-0.08,0.00020763,2]
[392207378,1761255246137,-0.16,0.00020763,2]
[392207379,1761255246333,-0.32,0.00020763,2]
[392207380,1761255246486,-0.64,0.00020763,2]
[392207381,1761255246619,-1.28,0.00020763,2]
[392207382,1761255246753,-2.56,0.00020763,2]
[392207383,1761255248538,-5.12,0.00020763,2]
[392207384,1761255248812,-10.24,0.00020763,2]
[392207385,1761255249057,-20.48,0.00020763,2]
[392207386,1761255249097,-40.96,0.00020763,2]
[392207387,1761255249220,-2572.82485301,0.00020763,2]
[392207388,1761255249238,-7345.26514699,0.00020763,2]
[392207389,1761255249248,-300.0,0.00020972,2]
[392207390,1761255249257,-2313.78485301,0.00020973,2]
[392207391,1761255249297,-10000.01,0.00020973,2]
[392207392,1761255249312,-10000.01,0.00020973,2]
[392207393,1761255249425,-10000.01,0.00020973,2]
[392207394,1761255249618,-10000.01,0.00020973,2]
[392207395,1761255249748,-10000.01,0.00020973,2]
[392207396,1761255249860,-10000.01,0.00020973,2]
[392207397,1761255251572,-10000.01,0.00020973,2]
[392207398,1761255251708,-10000.01,0.00020973,2]
[392207399,1761255254548,-10000.01,0.00020973,2]
[392207400,1761255254657,-10000.01,0.00020973,2]
[392207401,1761255254763,-10000.01,0.00020973,2]
[392207402,1761255254915,-10000.01,0.00020973,2]
[392207403,1761255255111,-10000.01,0.00020973,2]
[392207404,1761255255233,-10000.01,0.00020973,2]
[392207405,1761255255396,-10000.01,0.00020973,2]
[392207406,1761255255507,-10000.01,0.00020973,2]
[392207407,1761255257856,-10000.01,0.00020973,2]
[392207408,1761255258156,-10000.01,0.00020973,2]
[392207409,1761255260611,-10000.01,0.00020973,2]
[392207410,1761255260711,-10000.01,0.00020973,2]
[392207411,1761255260843,-10000.01,0.00020973,2]
[392207412,1761255260967,-10000.01,0.00020973,2]
[392207413,1761255261110,-10000.01,0.00020973,2]
[392207414,1761255261230,-10000.01,0.00020973,2]
[392207415,1761255261432,-10000.01,0.00020973,2]
[392207416,1761255261679,-10000.01,0.00020973,2]
[392207417,1761255263737,-714.77337465,0.00020973,2]
[392207418,1761255263763,-8570.4632507,0.00020973,2]
[392207419,1761255266683,9285.23662535,0.00020763,2]
[392207420,1761255280899,150.0,0.00019389,2]
[392207421,1761255281322,150.0,0.00020313,2]
[392207422,1761255289648,414.77337465,0.00021073,2]
[392207423,1761255289685,4585.22662535,0.00021073,2]
[392207424,1761255305785,151.0,0.00035968,30]
[392207425,1761255305840,326.85270263,0.00035968,30]
[392207426,1761255305930,151.0,0.00035968,30]
[392207427,1761255306087,196.0,0.00016,2]
[392207428,1761255306387,151.0,0.00035968,30]
[392207429,1761255306420,196.0,0.00016037,2]
[392207430,1761255306534,151.0,0.00035968,30]
[392207431,1761255306683,196.0,0.00016074,2]
[392207432,1761255306961,196.0,0.00016111,2]
[392207433,1761255307017,151.0,0.00035968,30]
[392207434,1761255307171,151.0,0.00035968,30]
[392207435,1761255307350,196.0,0.00016147,2]
[392207436,1761255307527,196.0,0.00016184,2]
[392207437,1761255307646,151.0,0.00035968,30]
[392207438,1761255307773,151.0,0.00035968,30]
[392207439,1761255307847,196.0,0.00016221,2]
[392207440,1761255308092,196.0,0.00016258,2]
[392207441,1761255308258,151.0,0.00035968,30]
[392207442,1761255308316,160.0,0.00035968,30]
[392207443,1761255308395,151.0,0.00035968,30]
[392207444,1761255308426,196.0,0.00016295,2]
[392207445,1761255308667,196.0,0.00016332,2]
[392207446,1761255308884,500.0,0.00035968,30]
[392207447,1761255308944,151.0,0.00035968,30]
[392207448,1761255309006,165.92,0.00035968,30]
[392207449,1761255309087,196.0,0.00016368,2]
[392207450,1761255309142,151.0,0.00035968,30]
[392207451,1761255309208,250.0,0.00035968,30]
[392207452,1761255309278,196.0,0.00016405,2]
[392207453,1761255309517,151.0,0.00035968,30]
[392207454,1761255309679,196.0,0.00016442,2]
[392207455,1761255309728,172.05904,0.00035968,30]
[392207456,1761255309792,500.0,0.00035968,30]
[392207457,1761255309880,250.0,0.00035968,30]
[392207458,1761255309955,196.0,0.00016479,2]
[392207459,1761255310154,196.0,0.00016516,2]
[392207460,1761255310204,178.42522448,0.00035968,30]
[392207461,1761255310256,500.0,0.00035968,30]
[392207462,1761255310304,151.0,0.00035968,30]
[392207463,1761255310384,250.0,0.00035968,30]
[392207464,1761255310463,196.0,0.00016553,2]
[392207465,1761255310745,196.0,0.00016589,2]
[392207466,1761255310806,185.02695779,0.00035968,30]
[392207467,1761255310863,151.0,0.00035968,30]
[392207468,1761255310924,500.0,0.00035968,30]
[392207469,1761255310984,151.0,0.00035968,30]
[392207470,1761255311045,250.0,0.00035968,30]
[392207471,1761255311129,196.0,0.00016626,2]
[392207472,1761255311320,196.0,0.00016663,2]
[392207473,1761255311446,151.0,0.00035968,30]
[392207474,1761255311506,191.87295522,0.00035968,30]
[392207475,1761255311573,500.0,0.00035968,30]
[392207476,1761255311652,196.0,0.000167,2]
[392207477,1761255311705,250.0,0.00035968,30]
[392207478,1761255311883,196.0,0.00016737,2]
[392207479,1761255312052,151.0,0.00035968,30]
[392207480,1761255312107,198.97225457,0.00035968,30]
[392207481,1761255312165,500.0,0.00035968,30]
[392207482,1761255312243,196.0,0.00016774,2]
[392207483,1761255312393,250.0,0.00035968,30]
[392207484,1761255312475,196.0,0.00016811,2]
[392207485,1761255312706,5000.0,0.00021073,2]
[392207486,1761255312759,206.33422799,0.00035968,30]
[392207487,1761255312810,500.0,0.00035968,30]
[392207488,1761255312870,250.0,0.00035968,30]
[392207489,1761255313089,196.0,0.00016847,2]